Workbook

Sheet Genel Bilgiler
A1: Goodyear Lastikleri T.A.Ş.
A4: Parametre Analizi | B4: PARAMETRE ANALİZİ
A5: Gösterge Tahvil | B5: 0.1105
A6: 2017 Ortalama Euro/Dolar Kuru | B6: 1.1175
A7: 2017 Ortalama Euro Kuru | B7: 3.9294

Sheet PD
D2: Hesaplanan PD | E2: Ağırlık | F2: Ağırlıklı PD
C3: İndirgenmiş Nakit Akımı Analizi | D3: =DCF!G43*1000 -> 2428908913 | E3: 0.9 | F3: =+D3*E3 -> 2186018021
C4: Çarpan Analizi | D4: ='carpan analizi'!D26 -> 1897613141 | E4: 0.1 | F4: =+D4*E4 -> 189761314.1
C5: Bilanço Dönemi Sonrası Döviz Pozisyonu Farkı | F5: ='Döviz Pozisyonu'!G4 -> 2347196.458
C6: Bilanço Dönemi Sonrası Temettü Dağıtımı | F6: =-0.0319759*B_GT!I60 -> -8633493
C7: Hedef Piyasa Değeri | F7: =SUM(F3:F6) -> 2369493039
C8: Hedef Fiyat | F8: =F7/B_GT!I60 -> 8.775900145

Sheet carpan analizi
A1: Tarih | B1: 2017-05-08
A2: Dönem | B2: 2017/03
A3: Yılsonu Dönemi | B3: 2016/12
A4: Önceki Yıl Dönemi | B4: 2016/03
A9: Şirket | B9: Piyasa Değeri | C9: Firma Değeri | D9: Net Borç | E9: Özkaynaklar | F9: Net Satışlar | G9: FAVÖK | H9: Net Kar | I9: F/K | J9: FD/FAVÖK | K9: FD/Satışlar | L9: PD/DD
A10: GOODY | B10: =4.24*B_GT!I60 -> 1144800000 | C10: =B10+D10 -> 1131741736 | D10: =DCF!G42*1000 -> -13058264 | E10: =B_GT!I58 -> 480893847 | F10: =B_GT!I70+B_GT!H70-B_GT!G70 -> 1443381597 | G10: =B_GT!I107+B_GT!H107-B_GT!G107 -> 158439051 | H10: =B_GT!I88+B_GT!H88-B_GT!G88 -> 70001557 | I10: =+B10/H10 -> 16.35392196 | J10: =+C10/G10 -> 7.143073181 | K10: =+C10/F10 -> 0.784090457 | L10: =+B10/E10 -> 2.380566953
A11: BRISA | B11: =6.86*305116875 -> 2093101762 | C11: =+B11+D11 -> 3963038044 | D11: =388067478+259567804+1222301000 -> 1869936282 | E11: 584110044 | F11: 1837596781 | G11: 181830672 | H11: 82250857 | I11: =+B11/H11 -> 25.44778059 | J11: =+C11/G11 -> 21.795212 | K11: =+C11/F11 -> 2.156641808 | L11: =+B11/E11 -> 3.583403134
A13: TOPLAM | B13: =SUM(B10:B11) -> 3237901762 | C13: =SUM(C10:C11) -> 5094779780 | D13: 1856878018 | E13: 1065003891 | F13: 3280978378 | G13: 340269723 | H13: 152252414 | I13: =+B13/H13 -> 21.26666946 | J13: =+C13/G13 -> 14.97276847 | K13: =+C13/F13 -> 1.552823333 | L13: =+B13/E13 -> 3.040272237
A20: Ortalama
A21: Çarpan Analizi | B21: Hesaplanan PD | C21: Ağırlık | D21: Ağırlıklı PD
A22: F/K | B22: =+$I$13*$H$10 -> 1488699974 | C22: 0.25 | D22: =B22*C22 -> 372174993.5
A23: FD/FAVÖK | B23: =$J$13*$G$10-$D$10 -> 2385329492 | C23: 0.25 | D23: =B23*C23 -> 596332372.9
A24: FD/Satışlar | B24: =$K$13*$F$10-D10 -> 2254374886 | C24: 0.25 | D24: =B24*C24 -> 563593721.6
A25: PD/DD | B25: =$L$13*$E$10 -> 1462048212 | C25: 0.25 | D25: =B25*C25 -> 365512053
A26: Hedef Piyasa Değeri | D26: =SUM(D22:D25) -> 1897613141
A27: Hedef Fiyat | D27: =+D26/B_GT!I60 -> 7.028196819

Sheet WACC
A1: ALKIM
B2: Ağırlıklı Ortalama Sermaye Maliyeti | G2: Ağırlıklı Ortalama Sermaye Maliyeti
B3: Risk free rate | D3: % | E3: ='Genel Bilgiler'!B5 -> 0.1105 | G3: Risksiz Getiri Oranı | H3: =+E3 -> 0.1105
B4: Beta | E4: 0.65 | G4: Beta | H4: =+E4 -> 0.65
B5: Market risk premium | D5: % | E5: 0.05 | G5: Piyasa Risk Primi | H5: =+E5 -> 0.05
B6: Ke | D6: % | E6: =E3+(E4*E5) -> 0.143 | G6: Ke | H6: =H3+(H4*H5) -> 0.143
B8: Cost of debt
B9: Cost of debt | D9: % | E9: 0.139 | G9: Borçlanma Maliyeti
B10: Marginal tax rate | D10: % | E10: 0.2 | G10: Borç Maliyeti | H10: =+E9 -> 0.139
B11: Kd | E11: =+E9*(1-E10) -> 0.1112 | G11: Vergi Oranı | H11: =+E10 -> 0.2
G12: Kd | H12: =+E11 -> 0.1112
B14: Debt / (debt + equity) | E14: =+E20/E22 -> 0.005810188647 | G14: Borç / (Borç + Özkaynak) | H14: =+E14 -> 0.005810188647
B15: WACC | E15: =E6*(1-E14)+E11*E14 -> 0.142815236 | G15: AOSM | H15: =H6*(1-H14)+H12*H14 -> 0.142815236
B20: Finansal Borç | E20: =B_GT!I34+B_GT!I52 -> 2810413
B21: Özkaynak | E21: =B_GT!I58 -> 480893847
B22: Toplam | E22: =+E20+E21 -> 483704260
B26: Beta Hesaplamak için | C26: http://bigpara.hurriyet.com.tr/borsa/hisse-fiyatlari/GOODY-detay/

Sheet DCF
A1: WACC | C1: =+WACC!H15 -> 0.142815236 | H1: 3.024845211 | I1: 3.344955939 | J1: 3.929408696
G3: Şirketin satışlarının %65'lik kısmı yurtdışına olup dolar kuru oldukça önemli.
A6: Euro/Dolar Paritesi | B6: 1.32541205 | C6: 1.3911731 | D6: 1.286102071 | E6: 1.329557572 | F6: 1.327880381 | G6: 1.109890434 | H6: 1.10592422 | I6: ='Genel Bilgiler'!B6 -> 1.1175 | J6: =I6-0.01 -> 1.1075 | K6: =J6-0.01 -> 1.0975 | L6: =K6-0.01 -> 1.0875 | M6: =L6-0.01 -> 1.0775
A8: 000 TL | B8: 2010/12 | C8: 2011/12 | D8: 2012/12 | E8: 2013/12 | F8: 2014/12 | G8: 2015/12 | H8: 2016/12T | I8: 2017/12T | J8: 2018/12T | K8: 2019/12T | L8: 2020/12T | M8: 2021/12T | N8: 2022/12T+
A9: Net Satışlar | F9: =B_GT!E70/1000 -> 1138235.392 | G9: =B_GT!F70/1000 -> 1285114.42 | H9: =B_GT!H70/1000 -> 1349977.316 | I9: =+I10*I14/1000 -> 1657228.486 | J9: =+J10*J14/1000 -> 1947863.606 | K9: 2289468.627 | L9: 2690982.356 | M9: =+M10*M14/1000 -> 3162911.234
A10: Ortalama Birim Fiyat | G10: =+G9*1000/G14 -> 174.7893289 | H10: =+H9*1000/H14 -> 177.6047811 | I10: =+I11*I12 -> 213.1252657 | J10: =+J11*J12 -> 243.2057657 | K10: =+K11*K12 -> 277.5318275 | L10: =+L11*L12 -> 316.7026697 | M10: =+M11*M12 -> 361.4020845
A11: Euro Bazında Ortalama Fiyat | G11: 57.78455318 | H11: 53.09629915 | I11: 54.23862822 | J11: 56.26715292 | K11: 58.37154444 | L11: 60.5546402 | M11: 62.81938374
A12: Ortalama Euro Kuru | B12: 1.998344061 | C12: 2.339007692 | D12: 2.315218774 | E12: 2.533894253 | F12: 2.905396169 | G12: 3.024845211 | H12: 3.344955939 | I12: ='Genel Bilgiler'!B7 -> 3.9294 | J12: =+I12*1.1 -> 4.32234 | K12: =+J12*1.1 -> 4.754574 | L12: 5.2300314 | M12: =+L12*1.1 -> 5.75303454
A13: Fiyat Artışı | H13: =+H10/G10-1 -> 0.01610768941 | I13: =+I10/H10-1 -> 0.1999973444 | J13: =+J10/I10-1 -> 0.14114 | K13: 0.14114 | L13: 0.14114 | M13: =+M10/L10-1 -> 0.14114
A14: Satış Adeti | G14: =Satış!D8 -> 7352362 | H14: =Satış!C8 -> 7601019 | I14: =+H14*(1+I15) -> 7775842.437 | J14: =+I14*(1+J15) -> 8009117.71 | K14: =+J14*(1+K15) -> 8249391.241 | L14: =+K14*(1+L15) -> 8496872.979 | M14: =+L14*(1+M15) -> 8751779.168
A15: Satış Miktarı Artışı | H15: =+H14/G14-1 -> 0.03382001594 | I15: 0.023 | J15: 0.03 | K15: 0.03 | L15: 0.03 | M15: 0.03
A16: Net Satış Değişimi | D16: -0.08171082263 | E16: -0.03053056198 | F16: 0.03469897852 | G16: =+G9/F9-1 -> 0.1290409954 | H16: 0.05047246766 | I16: 0.2275972834 | J16: 0.1753742 | K16: 0.1753742 | L16: 0.1753742 | M16: =+M9/L9-1 -> 0.1753742
A17: Miktar Değişimi | F17: =+#REF!/#REF!-1 ->  | G17: =+F17 ->  | H17: 0.03 | I17: 0.03 | J17: 0.03 | K17: 0.03 | L17: 0.03 | M17: 0.03
A18: Fiyat Değişimi | F18: 0.09190951098 | G18: 0.03 | H18: 0.03 | I18: 0.03 | J18: 0.03 | K18: 0.03 | L18: 0.03 | M18: 0.03
A20: SMM | F20: =+F9*F24 -> 965666.408 | G20: 1102696.698 | H20: =+H14*H22/1000 -> 1120583.982 | I20: =+I14*I22/1000 -> 1314363.797 | J20: =+J14*J22/1000 -> 1517646.654 | K20: =+K14*K22/1000 -> 1752512.638 | L20: 2023893.732 | M20: =+M14*M22/1000 -> 2337496.535
A21: Ortalama Dolar Kuru | B21: 1.507715326 | C21: 1.681320385 | D21: 1.800182759 | E21: 1.905817625 | F21: 2.187995402 | G21: 2.725354789 | H21: 3.024579693 | I21: =+I12/I6 -> 3.516241611 | J21: =+J12/J6 -> 3.902790068 | K21: 4.332185877 | L21: 4.809224276 | M21: =+M12/M6 -> 5.339243193
A22: Birim SMM | G22: 149.9785644 | H22: 147.4254941 | I22: =+I21*I23 -> 169.0316911 | J22: =+J21*J23 -> 189.4898676 | K22: 212.4414501 | L22: 238.1927724 | M22: =+M21*M23 -> 267.0881532
A23: Dolar Bazında Ortalama Birim Maliyet | G23: 55.0308404 | H23: 48.74247303 | I23: 48.0716941 | J23: =+I23*1.01 -> 48.55241104 | K23: =+J23*1.01 -> 49.03793515 | L23: 49.5283145 | M23: =+L23*1.01 -> 50.02359765
A24: SMM/Net Satışlar | F24: =-B_GT!E71/B_GT!E70 -> 0.8483890193 | G24: =-B_GT!F71/B_GT!F70 -> 0.8580533226 | H24: =-B_GT!H71/B_GT!H70 -> 0.8300761566 | I24: =+I20/I9 -> 0.7931095851 | J24: =+J20/J9 -> 0.7791339444 | K24: =+K20/K9 -> 0.7654669808 | L24: =+L20/L9 -> 0.7521021932 | M24: =+M20/M9 -> 0.7390332394 | P24: Dönemler itibariyle çok değişse de ortalama bu seviyelerde gidiyor.
A25: Faaliyet Giderleri | F25: =+F26*F9 -> 116460.355 | G25: 127591.725 | H25: 143640.632 | I25: 165722.8486 | J25: 194786.3606 | K25: 228946.8627 | L25: 269098.2356 | M25: =+M26*M9 -> 316291.1234
A26: Faaliyet Giderleri/Net Satışlar | F26: =-(B_GT!E74+B_GT!E75)/B_GT!E70 -> 0.1023165822 | G26: =-(B_GT!F74+B_GT!F75)/B_GT!F70 -> 0.09928433065 | H26: =-(B_GT!H74+B_GT!H75)/B_GT!H70 -> 0.106402256 | I26: 0.1 | J26: =+I26 -> 0.1 | K26: 0.1 | L26: =+K26 -> 0.1 | M26: =+L26 -> 0.1
A27: Esas Faaliyet Karı | F27: =+F9-F20-F25 -> 56108.629 | G27: 54825.997 | H27: 85752.702 | I27: 177141.8404 | J27: 235430.5909 | K27: 308009.1268 | L27: 397990.3886 | M27: =+M9-M20-M25 -> 509123.5754
A29: Amortisman Giderleri | F29: =B_GT!E106/1000 -> 12823.597 | G29: =B_GT!F106/1000 -> 28788.778 | H29: =B_GT!H106/1000 -> 30451.749 | I29: =H34/5+G34/5+F34/5+E34/5+D34/5 -> 30843.6284 | J29: =I34/5+H34/5+G34/5+F34/5+E34/5 -> 30937.8244 | K29: 35112.438 | L29: =K34/5+J34/5+I34/5+H34/5+G34/5 -> 39786.4822 | M29: =L34/5+K34/5+J34/5+I34/5+H34/5 -> 35975.5908
A30: FAVÖK | F30: =+F27+F29 -> 68932.226 | G30: =+G27+G29 -> 83614.775 | H30: =+H27+H29 -> 116204.451 | I30: =+I27+I29 -> 207985.4688 | J30: 266368.4153 | K30: 343121.5648 | L30: =+L27+L29 -> 437776.8708 | M30: =+M27+M29 -> 545099.1662
A31: Vergi | G31: =+G27*0.2 -> 10965.1994 | H31: =+H27*0.2 -> 17150.5404 | I31: =+I27*0.2 -> 35428.36808 | J31: 47086.11817 | K31: 61601.82535 | L31: =+L27*0.2 -> 79598.07773 | M31: =+M27*0.2 -> 101824.7151
A32: İşletme Sermayesi Değişimi | G32: =+G54 -> 16298.19604 | H32: =+H54 -> 3978.890137 | I32: =+I54 -> 26564.81325 | J32: =+J54 -> 28633.8296 | K32: 32652.97052 | L32: =+L54 -> 37831.86035 | M32: =+M54 -> 44951.49648
A34: Yatırım Giderleri | B34: 14817.675 | C34: 29210.175 | D34: 29529.02 | E34: 10626.932 | F34: 9704.779 | G34: 53783.207 | H34: 50574.204 | I34: 30000 | J34: =+I34*1.05 -> 31500 | K34: =+J34*1.05 -> 33075 | L34: =+K34*1.05 -> 34728.75 | M34: =+L34*1.05 -> 36465.1875
A37: Serbest Nakit Akımları | I37: =+I30-I31-I32-I34 -> 115992.2875 | J37: =+J30-J31-J32-J34 -> 159148.4675 | K37: 215791.7689 | L37: =+L30-L31-L32-L34 -> 285618.1828 | M37: =+M30-M31-M32-M34 -> 361857.7672 | N37: =(1+0.03)/(WACC!$E$15-0.03)*M37 -> 3303751.456
A38: İskonto Katsayısı | H38: 1 | I38: =+H38/((1+$C$1)) -> 0.8750320861 | J38: =+I38/((1+$C$1)) -> 0.7656811517 | K38: =+J38/((1+$C$1)) -> 0.6699955755 | L38: =+K38/((1+$C$1)) -> 0.5862676261 | M38: =+L38/((1+$C$1)) -> 0.5130029839 | N38: =+M38 -> 0.5130029839
A39: İndirgenmiş Serbest Nakit Akımı | I39: =+I37*I38 -> 101496.9733 | J39: =+J37*J38 -> 121856.9819 | K39: =+K37*K38 -> 144579.5304 | L39: =+L37*L38 -> 167448.694 | M39: =+M37*M38 -> 185634.1143 | N39: =+N37*N38 -> 1694834.355
A41: Firma Değeri | G41: =SUM(I39:N39) -> 2415850.649
A42: Net Borç | G42: =(B_GT!I34+B_GT!I52-B_GT!I4)/1000 -> -13058.264
A43: Piyasa Değeri | G43: =+G41-G42 -> 2428908.913 | P43: 2908.4
A44: Hisse Fiyatı | G44: =+G43*1000/B_GT!I60 -> 8.995958936 | P44: =+P43-3.66 -> 2904.74
G46: =+G43*1000 -> 2428908913 | I46: =+G41/I30 -> 11.61547805
H48: Net İşletme Sermayesi İhtiyaç Süresi | I48: 45
F53: =(F20+F25-F29)*$I$48/365 -> 131831.8972 | G53: 148130.0932 | H53: 152108.9834 | I53: 178673.7966 | J53: 207307.6262 | K53: 239960.5967 | L53: 277792.4571 | M53: 322743.9536
E54: Değişim | G54: =+G53-F53 -> 16298.19604 | H54: =+H53-G53 -> 3978.890137 | I54: =+I53-H53 -> 26564.81325 | J54: =+J53-I53 -> 28633.8296 | K54: 32652.97052 | L54: =+L53-K53 -> 37831.86035 | M54: 44951.49648
G62: =IF(PD!F7<B_GT!#REF!,B_GT!#REF!,PD!F7) -> 
G63: 0.8
G64: 0.81 | I64: =+H63-H64 -> 
G65: 0.82 | I65: =+H64-H65 -> 
G66: 0.83 | I66: =+H65-H66 -> 
G67: 0.84 | I67: =+H66-H67 ->  | K67: 0.8353
G68: 0.85 | I68: =+H67-H68 -> 
G69: 0.86
G70: 0.87
G71: 0.88
G72: 0.89
G73: 0.9
G74: 0.91
G75: 0.92
G76: 0.93
G77: 0.94
G78: 0.95
G79: 0.96
G80: 0.97
G81: 0.98
G82: 0.99

Sheet B_GT
A1: GOODY | B1: 2011/12 | C1: 2012/12 | D1: 2013/12 | E1: 2014/12 | F1: 2015/12 | G1: 2016/03 | H1: 2016/12 | I1: 2017/03
A2: BİLANÇO | E2: 2014/12 | F2: 2015/12 | G2: 2016/03 | H2: 2016/12 | I2: 2017/03
A3: DÖNEN VARLIKLAR | E3: 405640325 | F3: 579095191 | G3: 590015013 | H3: 551011145 | I3: 635887620
A4: Nakit ve Nakit Benzerleri | E4: 38052066 | F4: 118633253 | G4: 106035772 | H4: 40648383 | I4: 15868677
A5: Finansal Yatırımlar | E5: 0 | F5: 0 | G5: 0 | H5: 0 | I5: 0
A6: Ticari Alacaklar | E6: 161341872 | F6: 235987209 | G6: 267320630 | H6: 275435722 | I6: 346065412
A7: - İlişkili Taraflardan Ticari Alacaklar | E7: 106667959 | F7: 138788791 | G7: 162789497 | H7: 159925459 | I7: 227724023
A8: - İlişkili Olmayan Taraflardan Ticari Alacaklar | E8: 54673913 | F8: 97198418 | G8: 104531133 | H8: 115510263 | I8: 118341389
A9: Stoklar | E9: 155326671 | F9: 167698654 | G9: 156430402 | H9: 169949926 | I9: 189936084
A10: Peşin Ödenmiş Giderler | E10: 15536575 | F10: 12670576 | G10: 23526462 | H10: 21243011 | I10: 20003654
A11: İlişkili Olmayan Taraflara Peşin Ödenmiş Giderler | E11: 15536575 | F11: 0 | G11: 0 | H11: 0 | I11: 0
A12: Diğer Dönen Varlıklar | E12: 35383141 | F12: 44105499 | G12: 36701747 | H12: 43734103 | I12: 64013793
A13: ARA TOPLAM | E13: 0 | F13: 0 | G13: 0 | H13: 551011145 | I13: 635887620
A14: DURAN VARLIKLAR | E14: 202634878 | F14: 232768577 | G14: 234576082 | H14: 256929525 | I14: 261364614
A15: Finansal Yatırımlar | E15: 5000 | F15: 5000 | G15: 5000 | H15: 5000 | I15: 5000
A16: Diğer Finansal Yatırımlar | E16: 0 | F16: 0 | G16: 0 | H16: 5000 | I16: 5000
A17: Ticari Alacaklar | E17: 0 | F17: 0 | G17: 0 | H17: 1497560 | I17: 0
A18: - İlişkili Olmayan Taraflardan Ticari Alacaklar | E18: 0 | F18: 0 | G18: 0 | H18: 1497560 | I18: 0
A19: Diğer Alacaklar | E19: 1387322 | F19: 1413766 | G19: 1413496 | H19: 0 | I19: 1504789
A20: - İlişkili Olmayan Taraflardan Diğer Alacaklar | E20: 1387322 | F20: 1413766 | G20: 1413496 | H20: 0 | I20: 1504789
A21: Maddi Duran Varlıklar | E21: 184100007 | F21: 211798498 | G21: 210612505 | H21: 231653538 | I21: 232100419
A22: Arazi ve Arsalar | E22: 0 | F22: 0 | G22: 0 | H22: 1873285 | I22: 1873284
A23: Yeraltı ve Yerüstü Düzenlemeleri | E23: 0 | F23: 0 | G23: 0 | H23: 4420629 | I23: 4372267
A24: Binalar | E24: 0 | F24: 0 | G24: 0 | H24: 48272851 | I24: 48147171
A25: Tesis, Makine ve Cihazlar | E25: 0 | F25: 0 | G25: 0 | H25: 148508805 | I25: 148653681
A26: Taşıtlar | E26: 0 | F26: 0 | G26: 0 | H26: 4897 | I26: 5133
A27: Mobilya ve Demirbaşlar | E27: 0 | F27: 0 | G27: 0 | H27: 6412266 | I27: 6429118
A28: Yapılmakta Olan Yatırımlar | E28: 0 | F28: 0 | G28: 0 | H28: 22160805 | I28: 22619765
A29: Peşin Ödenmiş Giderler | E29: 1410105 | F29: 748746 | G29: 2798375 | H29: 874026 | I29: 3424089
A30: İlişkili Taraflara Peşin Ödenmiş Giderler | E30: 1410105 | F30: 0 | G30: 0 | H30: 874026 | I30: 3424089
A31: Diğer Duran Varlıklar | E31: 15732445 | F31: 18802567 | G31: 19746706 | H31: 22899401 | I31: 24330317
A32: TOPLAM VARLIKLAR | E32: 608275203 | F32: 811863768 | G32: 824591095 | H32: 807940670 | I32: 897252234
A33: KISA VADELİ YÜKÜMLÜLÜKLER | E33: 170287802 | F33: 311321705 | G33: 377573052 | H33: 307573378 | I33: 374338076
A34: Kısa Vadeli Borçlanmalar | E34: 506736 | F34: 1459251 | G34: 1319194 | H34: 1610723 | I34: 1533841
A35: İlişkili Taraflardan Kısa Vadeli Borçlanmalar | E35: 0 | F35: 0 | G35: 0 | H35: 0 | I35: 1533841
A36: Diğer Kısa Vadeli Borçlanmalar | E36: 0 | F36: 0 | G36: 0 | H36: 1610723 | I36: 1533841
A37: İlişkili Olmayan Taraflardan Kısa Vadeli Borçlanmalar | E37: 0 | F37: 0 | G37: 0 | H37: 1610723 | I37: 0
A38: Ticari Borçlar | E38: 147061892 | F38: 280256794 | G38: 276719365 | H38: 261669110 | I38: 314560254
A39: - İlişkili Taraflara Ticari Borçlar | E39: 22486054 | F39: 76373295 | G39: 85383944 | H39: 67356031 | I39: 90894241
A40: - İlişkili Olmayan Taraflara Ticari Borçlar | E40: 124575838 | F40: 203883499 | G40: 191335421 | H40: 194313079 | I40: 223666013
A41: Çalışanlara Sağlanan Faydalar Kapsamında Borçlar | E41: 6165570 | F41: 7336653 | G41: 9889615 | H41: 9199139 | I41: 11355244
A42: Diğer Borçlar | E42: 6062994 | F42: 7254908 | G42: 71570572 | H42: 17486415 | I42: 25677627
A43: - İlişkili Taraflara Diğer Borçlar | E43: 6062994 | F43: 0 | G43: 65882128 | H43: 0 | I43: 8633481
A44: - İlişkili Olmayan Taraflara Diğer Borçlar | E44: 0 | F44: 7254908 | G44: 5688444 | H44: 17486415 | I44: 17044146
A45: Dönem Karı Vergi Yükümlülüğü | E45: 515106 | F45: 1248030 | G45: 2602489 | H45: 5508314 | I45: 9553204
A46: Kısa Vadeli Karşılıklar | E46: 8154727 | F46: 8054510 | G46: 4671464 | H46: 10112693 | I46: 8269257
A47: - Diğer Kısa Vadeli Karşılıklar | E47: 1270479 | F47: 1323394 | G47: 1007906 | H47: 2104043 | I47: 2137107
A48: - Çalışanlara Sağlanan Faydalara İlişkin Kısa Vadeli Karşılıklar | E48: 6884248 | F48: 6731116 | G48: 3663558 | H48: 8008650 | I48: 6132150
A49: Diğer Kısa Vadeli Yükümlülükler | E49: 1820777 | F49: 5711559 | G49: 10800353 | H49: 1986984 | I49: 3388649
A50: ARA TOPLAM | E50: 0 | F50: 0 | G50: 0 | H50: 307573378 | I50: 374338076
A51: UZUN VADELİ YÜKÜMLÜLÜKLER | E51: 24970674 | F51: 25171216 | G51: 27574638 | H51: 44831216 | I51: 42020311
A52: Uzun Vadeli Borçlanmalar | E52: 528982 | F52: 1414816 | G52: 906166 | H52: 1583867 | I52: 1276572
A53: Diğer Borçlar | E53: 131664 | F53: 179370 | G53: 150490 | H53: 19841820 | I53: 15676089
A54: - İlişkili Olmayan Taraflara Diğer Borçlar | E54: 131664 | F54: 179370 | G54: 150490 | H54: 19841820 | I54: 15676089
A55: Uzun Vadeli Karşılıklar | E55: 21513063 | F55: 22370439 | G55: 25026584 | H55: 21875262 | I55: 24607330
A56: - Çalışanlara Sağlanan Faydalara İlişkin Uzun Vadeli Karşılıklar | E56: 21513063 | F56: 22370439 | G56: 25026584 | H56: 21875262 | I56: 24607330
A57: Ertelenmiş Vergi Yükümlülüğü | E57: 2796965 | F57: 1206591 | G57: 1491398 | H57: 1530267 | I57: 460320
A58: Ö Z K A Y N A K L A R | E58: 413016727 | F58: 475370847 | G58: 419443405 | H58: 455536076 | I58: 480893847
A59: ANA ORTAKLIĞA AİT ÖZKAYNAKLAR | E59: 413016727 | F59: 475370847 | G59: 419443405 | H59: 455536076 | I59: 480893847
A60: Ödenmiş Sermaye | E60: 11917664 | F60: 11917664 | G60: 11917664 | H60: 270000000 | I60: 270000000
A61: Sermaye Düzeltmesi Farkları | E61: 84110724 | F61: 84110724 | G61: 84110724 | H61: 0 | I61: 0
A62: Pay ihraç primi | E62: 3686 | F62: 3686 | G62: 3686 | H62: 0 | I62: 0
A63: Kardan Ayrılan Kısıtlanmış Yedekler | E63: 2222503 | F63: 2222503 | G63: 2222503 | H63: 2383533 | I63: 5187134
A64: Yasal Yedekler | E64: 0 | F64: 0 | G64: 0 | H64: 2383533 | I64: 5187134
A65: Geçmiş Yıllar Kar/Zararları | E65: 267450917 | F65: 304705517 | G65: 311234142 | H65: 137187554 | I65: 171715459
A66: Net Dönem Karı/Zararı | E66: 47311233 | F66: 72410753 | G66: 9954686 | H66: 45964989 | I66: 33991254
A67: TOPLAM KAYNAKLAR | E67: 608275203 | F67: 811863768 | G67: 824591095 | H67: 807940670 | I67: 897252234
E68: =+E71/E70 -> -0.8483890193 | F68: =+F71/F70 -> -0.8580533226 | G68: -0.85172824 | H68: -0.8300761566 | I68: -0.8123435297
A69: GELİR TABLOSU | E69: 2014/12 | F69: 2015/12 | G69: 2016/03 | H69: 2016/12 | I69: 2017/03 | L69: =+G70/L70 -> 165.1411371 | M69: =+I70/M70 -> 207.7209497
A70: Hasılat | E70: 1138235392 | F70: 1285114420 | G70: 325479970 | H70: 1349977316 | I70: 418884251 | L70: 1970920 | M70: 2016572
A71: Satışların Maliyeti (-) | E71: -965666408 | F71: -1102696698 | G71: -277220482 | H71: -1120583982 | I71: -340277911 | J71: =+I71/I70 -> -0.8123435297
A72: Ticari Faaliyetlerden Brüt Kar (Zarar) | E72: 172568984 | F72: 182417722 | G72: 48259488 | H72: 229393334 | I72: 78606340
A73: BRÜT KAR/ZARAR | E73: 172568984 | F73: 182417722 | G73: 48259488 | H73: 229393334 | I73: 78606340
A74: Genel Yönetim Giderleri (-) | E74: -37736467 | F74: -42747891 | G74: -10179803 | H74: -47711436 | I74: -11958678
A75: Pazarlama Giderleri (-) | E75: -78723888 | F75: -84843834 | G75: -22280721 | H75: -95929196 | I75: -23593431
A76: Esas Faaliyetlerden Diğer Gelirler | E76: 16380052 | F76: 39045910 | G76: 2625612 | H76: 30992490 | I76: 9001140
A77: Esas Faaliyetlerden Diğer Giderler | E77: -11714029 | F77: -9274634 | G77: -3735461 | H77: -21518113 | I77: -5298839
A78: ESAS FAALİYET KARI/ZARARI | E78: 60774652 | F78: 84597273 | G78: 14689115 | H78: 95227079 | I78: 46756532
A79: Yatırım Faaliyetlerinden Gelirler | E79: 0 | F79: 4001144 | G79: 0 | H79: 111475 | I79: 0
A80: Yatırım Faaliyetlerinden Giderler (-) | E80: 0 | F80: -1958442 | G80: 0 | H80: -253610 | I80: 0
A81: FİNANSMAN GİDERİ ÖNCESİ FAALİYET KARI/ZARARI | E81: 60774652 | F81: 86639975 | G81: 14689115 | H81: 95084944 | I81: 46756532
A82: Finansman Gelirleri | E82: 8799401 | F82: 23252624 | G82: 3737679 | H82: 27023200 | I82: 2218122
A83: Finansman Giderleri (-) | E83: -9484031 | F83: -19496510 | G83: -5395220 | H83: -34674572 | I83: -5745491
A84: SÜRDÜRÜLEN FAALİYETLER VERGİ ÖNCESİ KARI/ZARARI | E84: 60090022 | F84: 90396089 | G84: 13031574 | H84: 87433572 | I84: 43229163
A85: Sürdürülen Faaliyetler Vergi Gelir/Gideri | E85: -12778789 | F85: -17985336 | G85: -3076888 | H85: -41468583 | I85: -9237909
A86: - Dönem Vergi Gelir/Gideri | E86: -14162919 | F86: -19427287 | G86: -2792080 | H86: -41165499 | I86: -10307855
A87: - Ertelenmiş Vergi Gelir/Gideri | E87: 1384130 | F87: 1441951 | G87: -284808 | H87: -303084 | I87: -1069946
A88: SÜRDÜRÜLEN FAALİYETLER DÖNEM KARI/ZARARI | E88: 47311233 | F88: 72410753 | G88: 9954686 | H88: 45964989 | I88: 33991254
A89: DÖNEM KARI/ZARARI | E89: 47311233 | F89: 72410753 | G89: 9954686 | H89: 45964989 | I89: 33991254
A90: Dönem Karı/Zararının Dağılımı | E90: 47311233 | F90: 0 | G90: 0 | H90: 0 | I90: 0
A91: Ana Ortaklık Payları | E91: 47311233 | F91: 0 | G91: 0 | H91: 45964989 | I91: 33991254
A92: DİĞER KAPSAMLI GELİR: | E92: 0 | F92: 0 | G92: 0 | H92: 0 | I92: 0
A93: Kar veya Zararda Yeniden Sınıflandırılmayacaklar | E93: -133059 | F93: -593693 | G93: 0 | H93: 82368 | I93: 0
A94: Tanımlanmış Fayda Planları Yeniden Ölçüm Kazançları/Kayıpları | E94: 0 | F94: -742116 | G94: 0 | H94: 0 | I94: 0
A95: Diğer Kar veya Zarar Olarak Yeniden Sınıflandırılmayacak Diğer Kapsamlı Gelir Unsurları | E95: 0 | F95: 0 | G95: 0 | H95: 102960 | I95: 0
A96: Kar veya Zararda Yeniden Sınıflandırılmayacak Diğer Kapsamlı Gelire İlişkin Vergiler | E96: -133059 | F96: 148423 | G96: 0 | H96: -20592 | I96: 0
A97: Ertelenmiş Vergi (Gideri) Geliri | E97: 0 | F97: 0 | G97: 0 | H97: -20592 | I97: 0
A98: - Dönem Vergi Gideri (-)/Geliri | E98: -166324 | F98: 0 | G98: 0 | H98: 0 | I98: 0
A99: - Ertelenmiş Vergi Gideri (-)/Geliri | E99: 33265 | F99: 148423 | G99: 0 | H99: 0 | I99: 0
A100: DİĞER KAPSAMLI GELİR (GİDER) | E100: 0 | F100: 0 | G100: 0 | H100: 82368 | I100: 0
A101: DİĞER KAPSAMLI GELİR | E101: -133059 | F101: -593693 | G101: 0 | H101: 0 | I101: 0
A102: TOPLAM KAPSAMLI GELİR | E102: 47178174 | F102: 71817060 | G102: 9954686 | H102: 0 | I102: 0
A103: Ana Ortaklık Payları (Kapsamlı) | E103: 47178174 | F103: 0 | G103: 0 | H103: 46047357 | I103: 33991254
A106: Amortisman Giderleri | D106: 12604966 | E106: 12823597 | F106: 28788778 | G106: 7455937 | H106: 30451749 | I106: 8148743
A107: FAVÖK | E107: =E106+E78 -> 73598249 | F107: =F106+F78 -> 113386051 | G107: 22145052 | H107: 125678828 | I107: 54905275
A110: NET İŞLETME SERMAYESİ ANALİZİ | B110: 2011/12 | C110: 2012/12 | D110: 2013/12 | E110: 2014/12 | F110: 2015/12 | G110: 2016/03 | H110: 2016/12 | I110: 2017/03
A111: Ortalama Ticari Alacaklar | F111: =AVERAGE(E6:F6) -> 198664540.5 | G111: =AVERAGE(F6:G6) -> 251653919.5 | H111: =AVERAGE(F6,H6) -> 255711465.5 | I111: =AVERAGE(H6:I6) -> 310750567
A112: KDV Oranı | F112: 0.18 | G112: 0.18 | H112: 0.18 | I112: 0.18
A113: KDV Hariç Ortalama Ticari Alacaklar | F113: =+F111/(1+F112) -> 168359780.1 | G113: =+G111/(1+G112) -> 213266033.5 | H113: =+H111/(1+H112) -> 216704631.8 | I113: =+I111/(1+I112) -> 263347938.1
A114: Ticari Alacak Devir Hızı | F114: =F70/F113 -> 7.63314385 | G114: =G70/G113*4 -> 6.104675268 | H114: =H70/H113 -> 6.229572967 | I114: =I70/I113*4 -> 6.36244588
A115: Ticari Alacak Devir Süresi (gün) | F115: =365/F114 -> 47.81778087 | G115: =365/G114 -> 59.7902401 | H115: =365/H114 -> 58.59149607 | I115: =365/I114 -> 57.36787501
A117: Ortalama Stoklar | F117: =AVERAGE(E9:F9) -> 161512662.5 | G117: =AVERAGE(F9:G9) -> 162064528 | H117: =AVERAGE(F9,H9) -> 168824290 | I117: 179943005
A118: Stok Devir Hızı | F118: =-F71/F117 -> 6.827308032 | G118: =-G71/G117*4 -> 6.842224771 | H118: =-H71/H117 -> 6.637575565 | I118: =-I71/I117*4 -> 7.564126452
A119: Stok Devir Süresi (gün) | F119: =365/F118 -> 53.46177414 | G119: =365/G118 -> 53.34522209 | H119: 54.98995777 | I119: 48.2540849
A121: Ortalama Ticari Borçlar | F121: =AVERAGE(E38:F38) -> 213659343 | G121: =AVERAGE(F38:G38) -> 278488079.5 | H121: =AVERAGE(F38,H38) -> 270962952 | I121: 288114682
A122: KDV Oranı | F122: =F112 -> 0.18 | G122: =G112 -> 0.18 | H122: 0.18 | I122: 0.18
A123: KDV Hariç Ortalama Ticari Borçlar | F123: =+F121/(1+F122) -> 181067239.8 | G123: =+G121/(1+G122) -> 236006847 | H123: 229629620.3 | I123: 244164984.7
A124: Ticari Borç Devir Hızı | F124: =-SUM(F71,F74:F75)/F123 -> 6.794649458 | G124: =-SUM(G71,G74:G75)/G123*4 -> 5.248678331 | H124: =-SUM(H71,H74:H75)/H123 -> 5.50549451 | I124: =-SUM(I71,I74:I75)/I123*4 -> 6.156984719
A125: Ticari Borç Devir Süresi (gün) | F125: =365/F124 -> 53.71873888 | G125: =365/G124 -> 69.5413163 | H125: 66.29740514 | I125: 59.28226505
A127: Net İşletme Sermayesi İhtiyaç Süresi | F127: =F119+F115-F125 -> 47.56081613 | G127: =G119+G115-G125 -> 43.59414589 | H127: 47.2840487 | I127: 46.33969486
A128: Net İşletme Sermayesi İhtiyacı | F128: =(-SUM(F71,F74:F75)-F106)*F127/365 -> 156559736.2 | G128: =(-SUM(G71,G74:G75)-G106)*G127/365*4 -> 144386232.9 | H128: =(-SUM(H71,H74:H75)-H106)*H127/365 -> 159829523.9 | I128: =(-SUM(I71,I74:I75)-I106)*I127/365*4 -> 186720418.4
A129: Mevcut Net İşletme Sermayesi | F129: =F3-F33 -> 267773486 | G129: =G3-G33 -> 212441961 | H129: 243437767 | I129: 261549544
I130: =+I128-H128 -> 26890894.52

Sheet Üretim
B2: Dönem | C2: Miktar (ton) | D2: Miktar (adet) | E2: KKO (İzmit) | F2: KKO (Adapazarı) | G2: Net Satışlar (TL) | H2: Ortalama Birim Fiyat | I2: Ortalama Birim Fiyat | J2: -
B3: 2016 | C3: 108450 | D3: 6111254 | E3: 0.94 | F3: 0.89 | G3: =B_GT!H70 -> 1349977316 | H3: =+G3/C3/1000 -> 12.44792361 | I3: =+G3/D3 -> 220.9002139
B4: 2015 | C4: 103464 | D4: 5916520 | G4: =B_GT!F70 -> 1285114420 | H4: =+G4/C4/1000 -> 12.42088475 | I4: =+G4/D4 -> 217.2078215
B5: 2014 | C5: 87917 | D5: 5154762 | G5: =B_GT!E70 -> 1138235392 | H5: =+G5/C5/1000 -> 12.94670419 | I5: =+G5/D5 -> 220.8124045

Sheet Satış
C1: =+C2/C3 -> 44.07397193 | D1: =+D2/D3 -> 49.58222785 | E1: =+E2/E3 -> 42.85240431 | F1: 43.30702992
C2: =+C13/C11 -> 147.4254941 | D2: =+D13/D11 -> 149.9785644 | E2: =+E13/E11 -> 168.7407695 | F2: =+F13/F11 -> 140.6553701
B3: Ortalama Euro Kuru | C3: 3.344955939 | D3: 3.024845211 | E3: 3.93772 | F3: 3.247864615
B4: ADET BAZINDA SATIŞLAR | C4: 2016 | D4: 2015 | E4: 2017/03 | F4: 2016/03
B5: Yenileme Kanalı | C5: 1618083 | D5: 1636571
B6: Orijinal Ekipman | C6: 1021688 | D6: 930348
B7: İhracat | C7: 4961248 | D7: 4785443
B8: Toplam | C8: =SUM(C5:C7) -> 7601019 | D8: =SUM(D5:D7) -> 7352362
B9: Tüketici Lastikleri | C9: 6610724 | D9: 6406558
B10: Ticari Lastikler | C10: 990295 | D10: 945804
B11: Toplam | C11: =SUM(C9:C10) -> 7601019 | D11: =SUM(D9:D10) -> 7352362 | E11: 2016572 | F11: 1970920
B12: Ciro | C12: =B_GT!H70 -> 1349977316 | D12: =B_GT!F70 -> 1285114420 | E12: =B_GT!I70 -> 418884251 | F12: =B_GT!G70 -> 325479970
B13: SMM | C13: =-B_GT!H71 -> 1120583982 | D13: =-B_GT!F71 -> 1102696698 | E13: =-B_GT!I71 -> 340277911 | F13: =-B_GT!G71 -> 277220482
B14: Adet Bazında Satış Değişimi | F14: =+E11/F11-1 -> 0.02316278692
B15: Ciro Değişimi | F15: =+E12/F12-1 -> 0.2869739757
B16: Euro Değişimi | F16: =+E3/F3-1 -> 0.2124027527 | G16: =(1+F16)*(1+F14)-1 -> 0.2404853793
B20: Dönem | C20: 2015/06 | D20: 2015/09 | E20: 2015/12 | F20: 2016/03 | G20: 2016/06 | H20: 2016/09 | I20: 2016/12 | J20: 2017/03 | K20: 2017/06 T
B21: Ortalama Euro Kuru | C21: 2.95132 | D21: 3.179618182 | E21: 3.185904545 | F21: 3.247864615 | G21: 3.27324 | H21: 3.312639394 | I21: 3.546576923 | J21: 3.93772 | K21: 3.910960714
B22: Ortalama Dolar Kuru | C22: 2.665024615 | D22: 2.855556061 | E22: 2.907684848 | F22: 2.94128 | G22: 2.897773846 | H22: 2.96660303 | I22: 3.293553846 | J22: 3.69452 | K22: 3.629689286
B23: Ortalama Brent Varil Fiyatı (USD) | C23: 63.44169231 | D23: 51.25530303 | E23: 44.75292308 | F23: 35.2515873 | G23: 46.99646154 | H23: 47.00242424 | I23: 51.05921875 | J23: 54.61421875 | K23: 52.68892857
B24: Ortalama Brent Varil Fiyatı (TL) | C24: =+C23*C22 -> 169.0736716 | D24: 146.3623912 | E24: 130.1273964 | F24: 103.6847887 | G24: 136.1851171 | H24: 139.4375342 | I24: 168.1662863 | J24: 201.7733235 | K24: 191.2444395
B25: Adet Bazında Satış | C25: 1659835 | D25: 1988036 | E25: 1925250 | F25: 1970920 | G25: 1827245 | H25: 1954031 | I25: 1847076 | J25: 2016572
B26: Ciro | C26: 308165959 | D26: 348099468 | E26: 336259832 | F26: 325479970 | G26: 324613568 | H26: 331444247 | I26: 368439531 | J26: 418884251
B27: SMM | C27: 262231959 | D27: 295692824 | E27: 299738958 | F27: 277220482 | G27: 264223986 | H27: 277673776 | I27: 301465738 | J27: 340277911
B28: Adet Başına SMM (TL) | C28: =+C27/C25 -> 157.9867631 | D28: =+D27/D25 -> 148.7361517 | E28: 155.6883303 | F28: 140.6553701 | G28: 144.6023856 | H28: 142.1030557 | I28: 163.2124168 | J28: 168.7407695

Sheet Döviz Pozisyonu
C1: %10 Değişim Etkisi | D1: 31.03.2017 Kapanış | E1: Bugün Kapanış | F1: Değişim | G1: Değişim Etkisi
B2: Dolar | C2: 394787 | D2: 3.5976 | E2: 3.5425 | F2: =+E2/D2-1 -> -0.01531576607 | G2: =(F2/10%)*C2 -> -60464.65338
B3: Euro | C3: 10812435 | D3: 3.8756 | E3: 3.9619 | F3: =+E3/D3-1 -> 0.02226751987 | G3: =(F3/10%)*C3 -> 2407661.112
F4: Toplam | G4: =SUM(G2:G3) -> 2347196.458

Sheet İçindekiler (hidden)
D3: Yönetici Özeti | E3: 6
C4: 1. GOODY | E4: 8
D5: 1.1. Genel Görünüm | E5: 8
D6: 1.1.1. Mağazacılık Faaliyetleri | E6: 8
D7: 1.1.2. Gıda Üretim Faaliyetleri | E7: 10
D8: 1.1.3. Temizlik Ürünleri Üretim Faaliyetleri | E8: 10
D9: 1.1.4. Emlak ve Konut Faaliyetleri | E9: 11
D10: 1.1.5. İnşaat Malzemeleri Üretim Faaliyetleri | E10: 11
D11: 1.1.6. Temizlik Faaliyetleri | E11: 13
D12: 1.1.7. Sosyal Tesis İşletmeciliği Faaliyetleri | E12: 13
D13: 1.2. İştirakler Hakkında | E13: 14
C14: 2. Mali Yapı | E14: 16
D15: 2.1. Genel Görünüm | E15: 16
D16: 2.2. Net İşletme Sermayesi | E16: 19
C17: 3. Değerleme | E17: 22
D18: 3.1. Genel Görünüm | E18: 22
D19: 3.2. İndirgenmiş Nakit Akımı Analizi | E19: 23
D20: 3.3. Çarpan Analizi | E20: 26
D21: 3.4. Hedef Piyasa Değeri | E21: 27
D22: 3.5. Duyarlılık Analizi | E22: 28
D23: 3.5.1. Gösterge Tahvil ve Piyasa Değeri İlişkisi | E23: 28
D24: 3.5.2. Ticari Faaliyetler ve Piyasa Değeri İlişkisi | E24: 29
D25: 3.5.3. Mamul Satışları ve Piyasa Değeri İlişkisi | E25: 29
D26: 3.5.4. Hizmet Satışları ve Piyasa Değeri İlişkisi | E26: 29
D27: 3.5.5. Borçlanma Maliyeti ve Piyasa Değeri İlişkisi | E27: 30
D28: 3.5.6. Finansal Borçlanma Tutarı ve Piyasa Değeri İlişkisi | E28: 30
C29: 4. Finansal Tablolar | E29: 32
D30: 4.1. GOODY Bilanço | E30: 32
D31: 4.2. GOODY Gelir Tablosu | E31: 35

Sheet EURTRY (hidden)
A1: Date | B1: Open | C1: High | D1: Low | E1: Close | K1: Yıllar | L1: Ortalama Kur
A2: 1994-01-28 | B2: 0.0197 | C2: 0.0197 | D2: 0.0197 | E2: 0.0197 | K2: 2017 | L2: 3.929408696
A3: 1994-01-31 | B3: 0.02 | C3: 0.02 | D3: 0.02 | E3: 0.02 | K3: 2016 | L3: 3.344955939
A4: 1994-02-01 | B4: 0.0197 | C4: 0.0197 | D4: 0.0197 | E4: 0.0197 | K4: 2015 | L4: 3.024845211
A5: 1994-02-02 | B5: 0.0199 | C5: 0.0199 | D5: 0.0199 | E5: 0.0199 | K5: 2014 | L5: 2.905396169
A6: 1994-02-03 | B6: 0.02 | C6: 0.02 | D6: 0.02 | E6: 0.02 | K6: 2013 | L6: 2.533894253
A7: 1994-02-04 | B7: 0.0199 | C7: 0.0199 | D7: 0.0199 | E7: 0.0199 | K7: 2012 | L7: 2.315218774
A8: 1994-02-07 | B8: 0.0201 | C8: 0.0201 | D8: 0.0201 | E8: 0.0201 | K8: 2011 | L8: 2.339007692
A9: 1994-02-08 | B9: 0.0202 | C9: 0.0202 | D9: 0.0202 | E9: 0.0202 | K9: 2010 | L9: 1.998344061
A10: 1994-02-09 | B10: 0.0206 | C10: 0.0206 | D10: 0.0206 | E10: 0.0206 | K10: 2009 | L10: 2.163314176
A11: 1994-02-10 | B11: 0.0209 | C11: 0.0209 | D11: 0.0209 | E11: 0.0209 | K11: 2008 | L11: 1.909194275
A12: 1994-02-11 | B12: 0.0214 | C12: 0.0214 | D12: 0.0214 | E12: 0.0214 | K12: 2007 | L12: 1.784182031
A13: 1994-02-14 | B13: 0.0209 | C13: 0.0209 | D13: 0.0209 | E13: 0.0209 | K13: 2006 | L13: 1.808782609
A14: 1994-02-15 | B14: 0.0209 | C14: 0.0209 | D14: 0.0209 | E14: 0.0209 | K14: 2005 | L14: 1.674763672
A15: 1994-02-16 | B15: 0.021 | C15: 0.021 | D15: 0.021 | E15: 0.021 | K15: 2004 | L15: 1.775523715
A16: 1994-02-17 | B16: 0.021 | C16: 0.021 | D16: 0.021 | E16: 0.021 | K16: 2003 | L16: 1.693046
A17: 1994-02-18 | B17: 0.0209 | C17: 0.0209 | D17: 0.0209 | E17: 0.0209 | K17: 2002 | L17: 1.439040945
A18: 1994-02-21 | B18: 0.021 | C18: 0.021 | D18: 0.021 | E18: 0.021 | K18: 2001 | L18: 1.095162081
A19: 1994-02-22 | B19: 0.0215 | C19: 0.0215 | D19: 0.0215 | E19: 0.0215 | K19: 2000 | L19: 0.5753678431
A20: 1994-02-23 | B20: 0.0215 | C20: 0.0215 | D20: 0.0215 | E20: 0.0215 | K20: 1999 | L20: 0.4495334711
A21: 1994-02-24 | B21: 0.0217 | C21: 0.0217 | D21: 0.0217 | E21: 0.0217 | K21: 1998 | L21: 0.2946933054
A22: 1994-02-25 | B22: 0.022 | C22: 0.022 | D22: 0.022 | E22: 0.022 | K22: 1997 | L22: 0.1725696
A23: 1994-02-28 | B23: 0.0227 | C23: 0.0227 | D23: 0.0227 | E23: 0.0227 | K23: 1996 | L23: 0.1064348178
A24: 1994-03-01 | B24: 0.0243 | C24: 0.0243 | D24: 0.0243 | E24: 0.0243 | K24: 1995 | L24: 0.06327037037
A25: 1994-03-02 | B25: 0.0248 | C25: 0.0248 | D25: 0.0248 | E25: 0.0248 | K25: 1994 | L25: 0.03844292237
A26: 1994-03-03 | B26: 0.0245 | C26: 0.0245 | D26: 0.0245 | E26: 0.0245 | K26: Grand Total | L26: 1.606634184
A27: 1994-03-04 | B27: 0.0245 | C27: 0.0245 | D27: 0.0245 | E27: 0.0245
A28: 1994-03-07 | B28: 0.0248 | C28: 0.0248 | D28: 0.0248 | E28: 0.0248
A29: 1994-03-08 | B29: 0.0248 | C29: 0.0248 | D29: 0.0248 | E29: 0.0248
A30: 1994-03-09 | B30: 0.0252 | C30: 0.0252 | D30: 0.0252 | E30: 0.0252
A31: 1994-03-10 | B31: 0.0238 | C31: 0.0238 | D31: 0.0238 | E31: 0.0238
A32: 1994-03-11 | B32: 0.0262 | C32: 0.0262 | D32: 0.0262 | E32: 0.0262
A33: 1994-03-16 | B33: 0.0268 | C33: 0.0268 | D33: 0.0268 | E33: 0.0268
A34: 1994-03-18 | B34: 0.0297 | C34: 0.0297 | D34: 0.0297 | E34: 0.0297
A35: 1994-03-21 | B35: 0.029 | C35: 0.029 | D35: 0.029 | E35: 0.029
A36: 1994-03-22 | B36: 0.0288 | C36: 0.0288 | D36: 0.0288 | E36: 0.0288
A37: 1994-03-23 | B37: 0.0291 | C37: 0.0291 | D37: 0.0291 | E37: 0.0291
A38: 1994-03-29 | B38: 0.0288 | C38: 0.0288 | D38: 0.0288 | E38: 0.0288
A39: 1994-03-30 | B39: 0.0282 | C39: 0.0282 | D39: 0.0282 | E39: 0.0282
A40: 1994-03-31 | B40: 0.0298 | C40: 0.0298 | D40: 0.0298 | E40: 0.0298
A41: 1994-04-01 | B41: 0.0313 | C41: 0.0313 | D41: 0.0313 | E41: 0.0313
A42: 1994-04-04 | B42: 0.0329 | C42: 0.0329 | D42: 0.0329 | E42: 0.0329
A43: 1994-04-06 | B43: 0.045 | C43: 0.045 | D43: 0.045 | E43: 0.045
A44: 1994-04-07 | B44: 0.0417 | C44: 0.0417 | D44: 0.0417 | E44: 0.0417
A45: 1994-04-08 | B45: 0.0372 | C45: 0.0372 | D45: 0.0372 | E45: 0.0372
A46: 1994-04-12 | B46: 0.0401 | C46: 0.0401 | D46: 0.0401 | E46: 0.0401
A47: 1994-04-13 | B47: 0.0426 | C47: 0.0426 | D47: 0.0426 | E47: 0.0426
A48: 1994-04-15 | B48: 0.0398 | C48: 0.0398 | D48: 0.0398 | E48: 0.0398
A49: 1994-04-18 | B49: 0.0376 | C49: 0.0376 | D49: 0.0376 | E49: 0.0376
A50: 1994-04-19 | B50: 0.0364 | C50: 0.0364 | D50: 0.0364 | E50: 0.0364
A51: 1994-04-20 | B51: 0.035 | C51: 0.035 | D51: 0.035 | E51: 0.035
A52: 1994-04-21 | B52: 0.0342 | C52: 0.0342 | D52: 0.0342 | E52: 0.0342
A53: 1994-04-22 | B53: 0.036 | C53: 0.036 | D53: 0.036 | E53: 0.036
A54: 1994-04-26 | B54: 0.0395 | C54: 0.0395 | D54: 0.0395 | E54: 0.0395
A55: 1994-04-27 | B55: 0.0376 | C55: 0.0376 | D55: 0.0376 | E55: 0.0376
A56: 1994-04-28 | B56: 0.0389 | C56: 0.0389 | D56: 0.0389 | E56: 0.0389
A57: 1994-04-29 | B57: 0.0399 | C57: 0.0399 | D57: 0.0399 | E57: 0.0399
A58: 1994-05-02 | B58: 0.0417 | C58: 0.0417 | D58: 0.0417 | E58: 0.0417
A59: 1994-05-03 | B59: 0.043 | C59: 0.043 | D59: 0.043 | E59: 0.043
A60: 1994-05-04 | B60: 0.0426 | C60: 0.0426 | D60: 0.0426 | E60: 0.0426
A61: 1994-05-05 | B61: 0.0422 | C61: 0.0422 | D61: 0.0422 | E61: 0.0422
A62: 1994-05-06 | B62: 0.0411 | C62: 0.0411 | D62: 0.0411 | E62: 0.0411
A63: 1994-05-09 | B63: 0.0407 | C63: 0.0407 | D63: 0.0407 | E63: 0.0407
A64: 1994-05-10 | B64: 0.0407 | C64: 0.0407 | D64: 0.0407 | E64: 0.0407
A65: 1994-05-11 | B65: 0.0401 | C65: 0.0401 | D65: 0.0401 | E65: 0.0401
A66: 1994-05-12 | B66: 0.0393 | C66: 0.0393 | D66: 0.0393 | E66: 0.0393
A67: 1994-05-13 | B67: 0.0384 | C67: 0.0384 | D67: 0.0384 | E67: 0.0384
A68: 1994-05-16 | B68: 0.0368 | C68: 0.0368 | D68: 0.0368 | E68: 0.0368
A69: 1994-05-17 | B69: 0.0386 | C69: 0.0386 | D69: 0.0386 | E69: 0.0386
A70: 1994-05-18 | B70: 0.0385 | C70: 0.0385 | D70: 0.0385 | E70: 0.0385
A71: 1994-05-25 | B71: 0.0393 | C71: 0.0393 | D71: 0.0393 | E71: 0.0393
A72: 1994-05-26 | B72: 0.0383 | C72: 0.0383 | D72: 0.0383 | E72: 0.0383
A73: 1994-05-27 | B73: 0.0381 | C73: 0.0381 | D73: 0.0381 | E73: 0.0381
A74: 1994-05-30 | B74: 0.0372 | C74: 0.0372 | D74: 0.0372 | E74: 0.0372
A75: 1994-05-31 | B75: 0.0367 | C75: 0.0367 | D75: 0.0367 | E75: 0.0367
A76: 1994-06-01 | B76: 0.0362 | C76: 0.0362 | D76: 0.0362 | E76: 0.0362
A77: 1994-06-02 | B77: 0.0389 | C77: 0.0389 | D77: 0.0389 | E77: 0.0389
A78: 1994-06-03 | B78: 0.0379 | C78: 0.0379 | D78: 0.0379 | E78: 0.0379
A79: 1994-06-06 | B79: 0.0379 | C79: 0.0379 | D79: 0.0379 | E79: 0.0379
A80: 1994-06-07 | B80: 0.0383 | C80: 0.0383 | D80: 0.0383 | E80: 0.0383
A81: 1994-06-08 | B81: 0.0386 | C81: 0.0386 | D81: 0.0386 | E81: 0.0386
A82: 1994-06-09 | B82: 0.0381 | C82: 0.0381 | D82: 0.0381 | E82: 0.0381
A83: 1994-06-10 | B83: 0.0381 | C83: 0.0381 | D83: 0.0381 | E83: 0.0381
A84: 1994-06-13 | B84: 0.0377 | C84: 0.0377 | D84: 0.0377 | E84: 0.0377
A85: 1994-06-14 | B85: 0.0377 | C85: 0.0377 | D85: 0.0377 | E85: 0.0377
A86: 1994-06-15 | B86: 0.0373 | C86: 0.0373 | D86: 0.0373 | E86: 0.0373
A87: 1994-06-16 | B87: 0.0371 | C87: 0.0371 | D87: 0.0371 | E87: 0.0371
A88: 1994-06-17 | B88: 0.0373 | C88: 0.0373 | D88: 0.0373 | E88: 0.0373
A89: 1994-06-20 | B89: 0.0376 | C89: 0.0376 | D89: 0.0376 | E89: 0.0376
A90: 1994-06-21 | B90: 0.0379 | C90: 0.0379 | D90: 0.0379 | E90: 0.0379
A91: 1994-06-22 | B91: 0.0381 | C91: 0.0381 | D91: 0.0381 | E91: 0.0381
A92: 1994-06-23 | B92: 0.0386 | C92: 0.0386 | D92: 0.0386 | E92: 0.0386
A93: 1994-06-24 | B93: 0.0379 | C93: 0.0379 | D93: 0.0379 | E93: 0.0379
A94: 1994-06-27 | B94: 0.0385 | C94: 0.0385 | D94: 0.0385 | E94: 0.0385
A95: 1994-06-28 | B95: 0.0385 | C95: 0.0385 | D95: 0.0385 | E95: 0.0385
A96: 1994-06-29 | B96: 0.0384 | C96: 0.0384 | D96: 0.0384 | E96: 0.0384
A97: 1994-06-30 | B97: 0.0382 | C97: 0.0382 | D97: 0.0382 | E97: 0.0382
A98: 1994-07-01 | B98: 0.0378 | C98: 0.0378 | D98: 0.0378 | E98: 0.0378
A99: 1994-07-04 | B99: 0.0379 | C99: 0.0379 | D99: 0.0379 | E99: 0.0379
A100: 1994-07-05 | B100: 0.0381 | C100: 0.0381 | D100: 0.0381 | E100: 0.0381
A101: 1994-07-06 | B101: 0.0385 | C101: 0.0385 | D101: 0.0385 | E101: 0.0385
A102: 1994-07-07 | B102: 0.0384 | C102: 0.0384 | D102: 0.0384 | E102: 0.0384
A103: 1994-07-08 | B103: 0.0388 | C103: 0.0388 | D103: 0.0388 | E103: 0.0388
A104: 1994-07-11 | B104: 0.0389 | C104: 0.0389 | D104: 0.0389 | E104: 0.0389
A105: 1994-07-12 | B105: 0.0391 | C105: 0.0391 | D105: 0.0391 | E105: 0.0391
A106: 1994-07-13 | B106: 0.0391 | C106: 0.0391 | D106: 0.0391 | E106: 0.0391
A107: 1994-07-14 | B107: 0.0388 | C107: 0.0388 | D107: 0.0388 | E107: 0.0388
A108: 1994-07-15 | B108: 0.0388 | C108: 0.0388 | D108: 0.0388 | E108: 0.0388
A109: 1994-07-18 | B109: 0.0389 | C109: 0.0389 | D109: 0.0389 | E109: 0.0389
A110: 1994-07-19 | B110: 0.0388 | C110: 0.0388 | D110: 0.0388 | E110: 0.0388
A111: 1994-07-20 | B111: 0.0387 | C111: 0.0387 | D111: 0.0387 | E111: 0.0387
A112: 1994-07-21 | B112: 0.0389 | C112: 0.0389 | D112: 0.0389 | E112: 0.0389
A113: 1994-07-22 | B113: 0.0386 | C113: 0.0386 | D113: 0.0386 | E113: 0.0386
A114: 1994-07-25 | B114: 0.0386 | C114: 0.0386 | D114: 0.0386 | E114: 0.0386
A115: 1994-07-26 | B115: 0.0384 | C115: 0.0384 | D115: 0.0384 | E115: 0.0384
A116: 1994-07-27 | B116: 0.0385 | C116: 0.0385 | D116: 0.0385 | E116: 0.0385
A117: 1994-07-28 | B117: 0.0385 | C117: 0.0385 | D117: 0.0385 | E117: 0.0385
A118: 1994-07-29 | B118: 0.0382 | C118: 0.0382 | D118: 0.0382 | E118: 0.0382
A119: 1994-08-01 | B119: 0.0387 | C119: 0.0387 | D119: 0.0387 | E119: 0.0387
A120: 1994-08-02 | B120: 0.0388 | C120: 0.0388 | D120: 0.0388 | E120: 0.0388
A121: 1994-08-03 | B121: 0.0386 | C121: 0.0386 | D121: 0.0386 | E121: 0.0386
A122: 1994-08-04 | B122: 0.0388 | C122: 0.0388 | D122: 0.0388 | E122: 0.0388
A123: 1994-08-05 | B123: 0.0386 | C123: 0.0386 | D123: 0.0386 | E123: 0.0386
A124: 1994-08-08 | B124: 0.0388 | C124: 0.0388 | D124: 0.0388 | E124: 0.0388
A125: 1994-08-09 | B125: 0.0387 | C125: 0.0387 | D125: 0.0387 | E125: 0.0387
A126: 1994-08-10 | B126: 0.0388 | C126: 0.0388 | D126: 0.0388 | E126: 0.0388
A127: 1994-08-11 | B127: 0.0386 | C127: 0.0386 | D127: 0.0386 | E127: 0.0386
A128: 1994-08-15 | B128: 0.0394 | C128: 0.0394 | D128: 0.0394 | E128: 0.0394
A129: 1994-08-16 | B129: 0.0393 | C129: 0.0393 | D129: 0.0393 | E129: 0.0393
A130: 1994-08-17 | B130: 0.0392 | C130: 0.0392 | D130: 0.0392 | E130: 0.0392
A131: 1994-08-18 | B131: 0.0395 | C131: 0.0395 | D131: 0.0395 | E131: 0.0395
A132: 1994-08-19 | B132: 0.0399 | C132: 0.0399 | D132: 0.0399 | E132: 0.0399
A133: 1994-08-22 | B133: 0.0402 | C133: 0.0402 | D133: 0.0402 | E133: 0.0402
A134: 1994-08-23 | B134: 0.0438 | C134: 0.0438 | D134: 0.0438 | E134: 0.0438
A135: 1994-08-24 | B135: 0.0445 | C135: 0.0445 | D135: 0.0445 | E135: 0.0445
A136: 1994-08-25 | B136: 0.0424 | C136: 0.0424 | D136: 0.0424 | E136: 0.0424
A137: 1994-08-26 | B137: 0.0376 | C137: 0.0376 | D137: 0.0376 | E137: 0.0376
A138: 1994-08-29 | B138: 0.0409 | C138: 0.0409 | D138: 0.0409 | E138: 0.0409
A139: 1994-08-31 | B139: 0.0424 | C139: 0.0424 | D139: 0.0424 | E139: 0.0424
A140: 1994-09-01 | B140: 0.0421 | C140: 0.0421 | D140: 0.0421 | E140: 0.0421
A141: 1994-09-02 | B141: 0.0425 | C141: 0.0425 | D141: 0.0425 | E141: 0.0425
A142: 1994-09-05 | B142: 0.0422 | C142: 0.0422 | D142: 0.0422 | E142: 0.0422
A143: 1994-09-06 | B143: 0.0429 | C143: 0.0429 | D143: 0.0429 | E143: 0.0429
A144: 1994-09-07 | B144: 0.0431 | C144: 0.0431 | D144: 0.0431 | E144: 0.0431
A145: 1994-09-08 | B145: 0.0429 | C145: 0.0429 | D145: 0.0429 | E145: 0.0429
A146: 1994-09-09 | B146: 0.0429 | C146: 0.0429 | D146: 0.0429 | E146: 0.0429
A147: 1994-09-12 | B147: 0.043 | C147: 0.043 | D147: 0.043 | E147: 0.043
A148: 1994-09-13 | B148: 0.0431 | C148: 0.0431 | D148: 0.0431 | E148: 0.0431
A149: 1994-09-14 | B149: 0.0432 | C149: 0.0432 | D149: 0.0432 | E149: 0.0432
A150: 1994-09-15 | B150: 0.0429 | C150: 0.0429 | D150: 0.0429 | E150: 0.0429
A151: 1994-09-16 | B151: 0.0432 | C151: 0.0432 | D151: 0.0432 | E151: 0.0432
A152: 1994-09-19 | B152: 0.043 | C152: 0.043 | D152: 0.043 | E152: 0.043
A153: 1994-09-20 | B153: 0.0429 | C153: 0.0429 | D153: 0.0429 | E153: 0.0429
A154: 1994-09-21 | B154: 0.0431 | C154: 0.0431 | D154: 0.0431 | E154: 0.0431
A155: 1994-09-22 | B155: 0.0431 | C155: 0.0431 | D155: 0.0431 | E155: 0.0431
A156: 1994-09-23 | B156: 0.0432 | C156: 0.0432 | D156: 0.0432 | E156: 0.0432
A157: 1994-09-26 | B157: 0.043 | C157: 0.043 | D157: 0.043 | E157: 0.043
A158: 1994-09-27 | B158: 0.043 | C158: 0.043 | D158: 0.043 | E158: 0.043
A159: 1994-09-28 | B159: 0.0432 | C159: 0.0432 | D159: 0.0432 | E159: 0.0432
A160: 1994-09-29 | B160: 0.043 | C160: 0.043 | D160: 0.043 | E160: 0.043
A161: 1994-09-30 | B161: 0.043 | C161: 0.043 | D161: 0.043 | E161: 0.043
A162: 1994-10-03 | B162: 0.0429 | C162: 0.0429 | D162: 0.0429 | E162: 0.0429
A163: 1994-10-04 | B163: 0.0432 | C163: 0.0432 | D163: 0.0432 | E163: 0.0432
A164: 1994-10-05 | B164: 0.0435 | C164: 0.0435 | D164: 0.0435 | E164: 0.0435
A165: 1994-10-06 | B165: 0.0435 | C165: 0.0435 | D165: 0.0435 | E165: 0.0435
A166: 1994-10-07 | B166: 0.0436 | C166: 0.0436 | D166: 0.0436 | E166: 0.0436
A167: 1994-10-10 | B167: 0.0437 | C167: 0.0437 | D167: 0.0437 | E167: 0.0437
A168: 1994-10-11 | B168: 0.044 | C168: 0.044 | D168: 0.044 | E168: 0.044
A169: 1994-10-12 | B169: 0.0445 | C169: 0.0445 | D169: 0.0445 | E169: 0.0445
A170: 1994-10-13 | B170: 0.0446 | C170: 0.0446 | D170: 0.0446 | E170: 0.0446
A171: 1994-10-14 | B171: 0.0449 | C171: 0.0449 | D171: 0.0449 | E171: 0.0449
A172: 1994-10-20 | B172: 0.0464 | C172: 0.0464 | D172: 0.0464 | E172: 0.0464
A173: 1994-10-26 | B173: 0.0472 | C173: 0.0472 | D173: 0.0472 | E173: 0.0472
A174: 1994-10-27 | B174: 0.047 | C174: 0.047 | D174: 0.047 | E174: 0.047
A175: 1994-10-28 | B175: 0.0468 | C175: 0.0468 | D175: 0.0468 | E175: 0.0468
A176: 1994-10-31 | B176: 0.0467 | C176: 0.0467 | D176: 0.0467 | E176: 0.0467
A177: 1994-11-01 | B177: 0.047 | C177: 0.047 | D177: 0.047 | E177: 0.047
A178: 1994-11-02 | B178: 0.0471 | C178: 0.0471 | D178: 0.0471 | E178: 0.0471
A179: 1994-11-03 | B179: 0.0467 | C179: 0.0467 | D179: 0.0467 | E179: 0.0467
A180: 1994-11-04 | B180: 0.0468 | C180: 0.0468 | D180: 0.0468 | E180: 0.0468
A181: 1994-11-07 | B181: 0.0471 | C181: 0.0471 | D181: 0.0471 | E181: 0.0471
A182: 1994-11-08 | B182: 0.0474 | C182: 0.0474 | D182: 0.0474 | E182: 0.0474
A183: 1994-11-09 | B183: 0.0469 | C183: 0.0469 | D183: 0.0469 | E183: 0.0469
A184: 1994-11-10 | B184: 0.0469 | C184: 0.0469 | D184: 0.0469 | E184: 0.0469
A185: 1994-11-11 | B185: 0.0468 | C185: 0.0468 | D185: 0.0468 | E185: 0.0468
A186: 1994-11-14 | B186: 0.0464 | C186: 0.0464 | D186: 0.0464 | E186: 0.0464
A187: 1994-11-15 | B187: 0.0464 | C187: 0.0464 | D187: 0.0464 | E187: 0.0464
A188: 1994-11-16 | B188: 0.046 | C188: 0.046 | D188: 0.046 | E188: 0.046
A189: 1994-11-17 | B189: 0.0461 | C189: 0.0461 | D189: 0.0461 | E189: 0.0461
A190: 1994-11-18 | B190: 0.046 | C190: 0.046 | D190: 0.046 | E190: 0.046
A191: 1994-11-21 | B191: 0.046 | C191: 0.046 | D191: 0.046 | E191: 0.046
A192: 1994-11-22 | B192: 0.046 | C192: 0.046 | D192: 0.046 | E192: 0.046
A193: 1994-11-23 | B193: 0.0462 | C193: 0.0462 | D193: 0.0462 | E193: 0.0462
A194: 1994-11-24 | B194: 0.0458 | C194: 0.0458 | D194: 0.0458 | E194: 0.0458
A195: 1994-11-25 | B195: 0.0458 | C195: 0.0458 | D195: 0.0458 | E195: 0.0458
A196: 1994-11-28 | B196: 0.0456 | C196: 0.0456 | D196: 0.0456 | E196: 0.0456
A197: 1994-11-29 | B197: 0.0455 | C197: 0.0455 | D197: 0.0455 | E197: 0.0455
A198: 1994-11-30 | B198: 0.0456 | C198: 0.0456 | D198: 0.0456 | E198: 0.0456
A199: 1994-12-01 | B199: 0.0456 | C199: 0.0456 | D199: 0.0456 | E199: 0.0456
A200: 1994-12-02 | B200: 0.0454 | C200: 0.0454 | D200: 0.0454 | E200: 0.0454
... 5757 more rows
